bitfinex/quotes_ETHUSD_20241116
["timestamp","ask_amount","ask_price","bid_price","bid_amount"]
[1731761518496,3.1481,3176.6,3176.4,0.01]
[1731761518697,3.1481,3176.6,3176.4,0.04899374]
[1731761518909,3.1481,3176.6,3176.4,0.01]
[1731761519113,3.1481,3176.6,3176.5,0.04896611]
[1731761519321,3.1481,3176.6,3176.4,0.01]
[1731761519707,3.1481,3176.6,3176.5,0.04898662]
[1731761519884,3.1481,3176.6,3175.9,0.01]
[1731761520084,3.77839846,3177.5,3176.0,0.04912377]
[1731761520085,3.14832,3176.3,3176.0,0.04912377]
[1731761520523,3.14832,3176.3,3175.9,0.01]
[1731761520709,3.14832,3176.3,3176.1,0.04909613]
[1731761520900,3.14832,3176.3,3176.0,0.04748173]
[1731761521088,3.14832,3176.3,3175.9,0.01]
[1731761521089,3.14832,3176.3,3176.2,0.04742645]
[1731761521293,5.27904257,3176.9,3176.1,0.04745409]
[1731761521294,2.13132257,3176.9,3176.1,0.04745409]
[1731761521494,1.5,3176.9,3176.6,0.01]
[1731761521825,1.5,3176.9,3176.7,0.04730982]
[1731761522028,1.5,3176.9,3176.8,3.15782]
[1731761522395,1.5,3176.9,3176.8,3.20514424]
[1731761522602,1.5,3176.9,3176.8,0.05732424]
[1731761523433,1.5,3176.9,3176.8,3.20514424]
[1731761523639,1.5,3176.9,3176.8,3.90577016]
[1731761525837,1.5,3176.9,3176.8,3.99300918]
[1731761526000,1.5,3176.9,3176.8,6.90577016]
[1731761528115,1.5,3176.9,3176.8,7.51872369]
[1731761528348,1.5,3176.9,3176.8,7.45577016]
[1731761528678,1.4541,3176.9,3176.8,0.04732424]
[1731761528811,1.4541,3176.9,3176.8,0.05732424]
[1731761529150,1.4541,3176.9,3176.8,3.20514424]
[1731761530065,1.4541,3176.9,3176.8,3.75514424]
[1731761530247,1.4541,3176.9,3176.8,0.05732424]
[1731761530415,1.4541,3176.9,3176.8,0.04732424]
[1731761530758,1.4541,3176.9,3176.8,0.05732424]
[1731761531470,1.4541,3176.9,3176.8,3.20514424]
[1731761531670,1.4541,3176.9,3176.8,3.87417066]
[1731761533333,1.4541,3176.9,3176.8,0.05732424]
[1731761533532,1.4541,3176.9,3176.8,0.04732424]
[1731761533773,4.60182,3176.9,3176.8,0.04732424]
[1731761534377,1.4541,3176.9,3176.8,0.05732424]
[1731761536285,1.4541,3176.9,3176.8,0.04732424]
[1731761536679,1.4541,3176.9,3176.8,0.05732424]
[1731761538888,1.4541,3176.9,3176.8,3.20514424]
[1731761539101,1.4541,3176.9,3176.8,3.87418366]
[1731761539689,1.4541,3176.9,3176.8,3.20514424]
[1731761541077,1.4541,3176.9,3176.8,3.75514424]
[1731761541802,1.4541,3176.9,3176.8,4.06954424]
[1731761542113,1.4541,3176.9,3176.8,6.75514424]
[1731761543557,1.4541,3176.9,3176.8,0.05732424]
[1731761545336,1.4541,3176.9,3176.8,6.20514424]
[1731761545640,1.4541,3176.9,3176.8,7.78897066]
[1731761546511,1.4541,3176.9,3176.8,6.20514424]
[1731761546913,1.4541,3176.9,3176.8,6.75514424]
[1731761548814,1.4541,3176.9,3176.8,0.04732424]
[1731761548962,4.60182,3176.9,3176.8,0.04732424]
[1731761549261,4.60182,3176.9,3175.9,0.01]
[1731761549262,3.14841,3176.2,3175.9,0.01]
[1731761549468,3.14853,3176.1,3175.9,0.01]
[1731761549632,3.14853,3176.1,3176.0,0.03635977]
[1731761549834,3.14837,3176.3,3176.0,0.04635977]
[1731761550160,3.14837,3176.3,3176.0,0.01]
[1731761550313,4.46682383,3176.9,3176.0,0.01]
[1731761550314,3.14812,3176.5,3176.0,0.01]
[1731761550520,3.14824,3176.4,3176.0,0.01]
[1731761550728,3.14824,3176.4,3176.1,0.03634091]
[1731761550933,1.4541,3176.9,3176.1,0.03634091]
[1731761550934,3.14841,3176.2,3176.1,0.03634091]
[1731761551328,3.14868,3176.0,3175.6,0.01]
[1731761551761,3.14868,3176.0,3175.7,0.03645147]
[1731761552149,3.14851,3176.1,3176.0,0.01]
[1731761552322,3.14851,3176.1,3175.7,0.03645147]
[1731761552543,3.14862,3176.0,3175.7,0.03645147]
[1731761553756,3.14872,3175.9,3175.7,0.03645147]
[1731761554082,3.14881,3175.8,3175.7,0.03645147]
[1731761554433,3.14901,3175.6,3175.5,0.00210486]
[1731761554828,3.14901,3175.6,3175.5,0.03871714]
[1731761555074,3.14896,3175.7,3175.5,0.03871714]
[1731761555284,3.14863,3176.0,3175.5,0.03871714]
[1731761555493,3.14884,3175.8,3175.5,0.03871714]
[1731761556161,3.1483,3176.4,3175.5,0.03871714]
[1731761556162,3.14892,3175.7,3175.5,0.03871714]
[1731761556476,3.14901,3175.6,3175.5,0.03871714]
[1731761561008,3.14892,3175.7,3175.5,0.03871714]
[1731761561870,3.14901,3175.6,3175.5,0.03871714]
[1731761564973,3.14901,3175.6,3175.5,0.00210486]
[1731761566416,6.15901,3175.6,3175.5,4.86e-06]
[1731761566711,6.15901,3175.6,3172.5,35.32861249]
[1731761566712,0.01,3174.9,3173.4,0.01]
[1731761566928,3.15077,3173.9,3173.4,0.01]
[1731761567410,3.15079,3173.8,3173.6,0.01]
[1731761567978,3.15109,3173.5,3173.1,0.01]
[1731761568329,3.15116,3173.5,3173.4,0.01]
[1731761568632,3.15116,3173.5,3172.5,0.01]
[1731761568633,3.15028,3174.4,3173.6,0.01]
[1731761568784,3.15028,3174.4,3173.8,0.01]
[1731761568785,3.15041,3174.2,3173.8,0.01]
[1731761569826,3.15028,3174.4,3174.0,0.01]
[1731761570380,3.14958,3175.1,3174.0,0.01]
[1731761570577,3.14977,3174.9,3174.3,0.01]
[1731761570819,3.1496,3175.0,3174.3,0.01]
[1731761570820,3.14981,3174.8,3174.3,0.01]
[1731761571191,3.14951,3175.1,3174.4,3.15012]
[1731761572092,3.14961,3175.0,3174.4,3.15012]
[1731761572295,3.14972,3174.9,3174.3,0.01]
[1731761572502,3.14961,3175.0,3174.3,0.01]
[1731761572503,3.14961,3175.0,3174.3,3.16029]
[1731761572816,3.14961,3175.0,3174.4,3.15019]
[1731761573530,0.62834644,3174.8,3174.3,0.01]
[1731761573834,3.14992,3174.7,3174.1,0.01]
[1731761574430,0.62834644,3174.8,3174.3,0.01]
[1731761577248,0.62834644,3174.8,3174.2,3.15039]
[1731761577249,3.65286973,3176.0,3174.6,0.01]
[1731761577547,0.63071714,3175.5,3175.4,0.01]
[1731761577753,0.63071714,3175.5,3174.9,0.01]
[1731761577754,3.14929,3175.4,3174.9,0.01]
[1731761578248,3.14931,3175.3,3174.9,0.01]
[1731761578452,3.77982714,3175.5,3174.9,0.01]
[1731761578852,3.77982714,3175.5,3175.1,0.01]
[1731761578853,0.63071714,3175.5,3175.1,0.01]
[1731761579234,0.63071714,3175.5,3175.3,0.01]
[1731761579956,0.63071714,3175.5,3174.5,0.55]
[1731761579957,3.14959,3175.1,3174.7,0.01]
[1731761580113,3.1497,3175.0,3174.7,0.01]
[1731761580549,3.14981,3174.8,3174.7,0.01]
[1731761580760,3.14968,3175.0,3174.7,0.01]
[1731761580925,3.77987714,3175.5,3174.3,0.01]
[1731761580926,3.14972,3174.9,3174.3,0.01]
[1731761581128,3.15021,3174.4,3173.9,0.01]
[1731761581329,3.15021,3174.4,3173.1,3.81671697]
[1731761581330,3.66286973,3175.2,3173.7,0.01]
[1731761581525,3.66286973,3175.2,3173.1,0.66528697]
[1731761581526,3.14965,3175.0,3174.1,0.01]
[1731761581743,3.15027,3174.4,3174.1,0.01]
[1731761582070,3.15027,3174.4,3173.4,3.15117]
[1731761582071,3.15051,3174.1,3173.5,3.16103]
[1731761582213,3.15051,3174.1,3173.7,0.01]
[1731761582691,0.01,3174.9,3173.7,0.01]
[1731761582970,3.15051,3174.1,3173.7,0.01]
[1731761583111,3.15051,3174.1,3173.9,0.01]
[1731761583454,3.14965,3175.0,3173.9,0.01]
[1731761583661,3.1506,3174.0,3173.4,3.16117]
[1731761584215,3.1506,3174.0,3173.1,0.67158869]
[1731761584216,0.61738347,3174.4,3174.1,0.01]
[1731761585655,3.15036,3174.3,3174.2,0.01]
[1731761587607,3.15036,3174.3,3173.5,3.0]
[1731761587608,3.15042,3174.2,3173.9,0.01]
[1731761588110,0.61738347,3174.4,3173.9,0.01]
[1731761588400,3.65286973,3175.2,3171.4,0.3287363]
[1731761588401,3.14941,3175.2,3174.4,0.01]
[1731761588610,3.0,3175.7,3174.4,3.16013]
[1731761588611,3.1493,3175.3,3174.4,3.16013]
[1731761589074,3.14953,3175.1,3174.4,3.16013]
[1731761589269,3.14953,3175.1,3174.5,3.15008]
[1731761589565,3.14953,3175.1,3174.4,3.16013]
[1731761589566,3.14961,3175.0,3174.4,0.01]
[1731761589772,3.1499,3174.7,3174.4,0.01]
[1731761590081,3.1499,3174.7,3174.2,0.01]
[1731761590652,3.1499,3174.7,3174.5,0.01]
[1731761590869,3.14971,3174.9,3174.5,0.01]
[1731761591397,3.65286973,3175.6,3174.5,0.01]
[1731761591398,3.1498,3174.8,3174.5,0.01]
[1731761592389,3.1498,3174.8,3174.6,0.03102504]
[1731761593105,0.62813737,3174.7,3174.6,0.03102504]
[1731761594197,3.14943,3175.2,3174.6,0.03102504]
[1731761594198,3.14943,3175.2,3174.7,0.01]
[1731761594559,3.14943,3175.2,3174.8,0.03100734]
[1731761595984,3.76595591,3175.2,3174.8,0.03100734]
[1731761596372,3.14923,3175.4,3174.8,3.18078734]
[1731761596575,3.0,3176.2,3174.9,0.01]
[1731761596788,3.14867,3176.0,3175.1,3.14949]
[1731761596991,3.14867,3176.0,3175.4,0.01]
[1731761597411,3.14867,3176.0,3175.5,0.03075955]
[1731761597730,0.64473874,3175.6,3175.5,0.03075955]
[1731761598025,3.79374874,3175.6,3175.5,0.03075955]
[1731761598184,7.44661847,3175.6,3175.5,9.55e-06]
[1731761598522,7.44661847,3175.6,3174.4,0.01]
[1731761598523,3.15013,3174.5,3174.4,0.01]
[1731761598664,3.14991,3174.7,3174.4,0.01]
[1731761598859,3.14972,3174.9,3174.4,0.01]
[1731761599206,3.15,3174.6,3174.1,0.01]
[1731761599512,3.15,3174.6,3174.5,0.01]
[1731761601213,3.14988,3174.8,3174.5,0.01]
[1731761601604,6.2993,3175.0,3174.5,0.01]
[1731761601923,3.14981,3174.8,3174.5,0.01]
[1731761602295,3.14963,3175.0,3174.5,0.01]
[1731761603523,0.61482865,3175.2,3174.5,0.01]
[1731761603720,3.14988,3174.8,3174.5,0.01]
[1731761603938,3.1496,3175.0,3174.5,0.01]
[1731761604231,3.76424865,3175.2,3174.7,0.01]
[1731761604232,3.1495,3175.1,3174.7,0.01]
[1731761605691,3.1495,3175.1,3174.8,0.02887899]
[1731761606885,0.01,3175.9,3174.8,0.02887899]
[1731761606886,3.14892,3175.7,3174.9,3.15969]
[1731761607085,3.14861,3176.0,3175.4,0.01]
[1731761607386,3.66286973,3176.8,3175.4,0.01]
[1731761607387,3.14909,3175.6,3175.4,0.01]
[1731761607725,3.14874,3175.9,3175.5,0.02873584]
[1731761607926,3.14874,3175.9,3175.4,0.01]
[1731761608111,0.63149211,3175.8,3175.3,3.1493]
[1731761608312,0.63149211,3175.8,3175.5,0.02866311]
[1731761608514,0.63149211,3175.8,3175.4,0.03869077]
[1731761608698,0.63149211,3175.8,3175.6,0.02863547]
[1731761609028,3.78030211,3175.8,3175.4,0.01]
[1731761609526,3.78030211,3175.8,3175.5,0.02864378]
[1731761610433,0.63149211,3175.8,3175.5,0.02864378]
[1731761611541,3.14857,3176.1,3175.5,0.02864378]
[1731761612042,0.61417456,3176.0,3175.5,0.02864378]
[1731761612694,3.76279456,3176.0,3175.5,0.02864378]
[1731761613023,3.76279456,3176.0,3175.8,0.01]
[1731761613439,0.61417456,3176.0,3175.9,0.02850879]
[1731761614304,3.14844,3176.2,3175.9,0.02850879]
[1731761614522,3.01529475,3176.7,3175.9,0.02850879]
[1731761614725,3.01529475,3176.7,3175.8,0.01]
[1731761615332,3.14852,3176.1,3175.8,0.01]
[1731761615493,3.14871,3175.9,3175.8,0.01]
[1731761615688,3.14857,3176.1,3175.9,0.0284087]
[1731761616028,3.14816,3176.5,3175.4,0.01]
[1731761616029,3.14886,3175.8,3175.4,0.01]
[1731761616446,3.14886,3175.8,3175.5,0.02850606]
[1731761616634,3.14861,3176.0,3175.5,0.02850606]
[1731761616925,3.14878,3175.9,3175.5,0.02850606]
[1731761617688,0.62974179,3176.2,3175.6,3.159]
[1731761617919,0.62974179,3176.2,3175.7,0.02845077]
[1731761618129,3.77818179,3176.2,3175.7,0.02845077]
[1731761618728,3.77818179,3176.2,3175.8,0.01]
[1731761618729,0.62974179,3176.2,3175.8,0.01]
[1731761618945,4.60186,3176.9,3176.0,3.1586]
[1731761619231,3.14803,3176.6,3176.1,0.02835037]
[1731761620023,3.14798,3176.7,3176.1,3.17683037]
[1731761620439,4.60184,3176.9,3176.3,3.1483]
[1731761620600,4.60184,3176.9,3176.5,0.01]
[1731761620944,0.63041199,3176.6,3176.5,0.01]
[1731761621729,3.77842199,3176.6,3176.5,0.01]
[1731761622439,3.14861,3176.0,3175.9,0.01]
[1731761623536,3.14841,3176.2,3175.9,0.01]
[1731761623688,3.14856,3176.1,3175.9,0.01]
[1731761624320,3.14856,3176.1,3175.7,0.01]
[1731761625036,3.14817,3176.5,3175.7,0.01]
[1731761625037,3.14881,3175.8,3175.7,0.01]
[1731761625204,3.14881,3175.8,3175.5,0.01]
[1731761625532,3.14891,3175.7,3175.5,0.01]
[1731761625729,3.14901,3175.6,3175.5,0.01]
[1731761626233,3.14886,3175.8,3175.5,0.01]
[1731761626670,3.14891,3175.7,3175.5,0.01]
[1731761627446,3.14878,3175.9,3175.5,0.01]
[1731761627738,3.14864,3176.0,3175.5,0.01]
[1731761627964,3.14841,3176.2,3175.5,3.1591]
[1731761628233,3.14845,3176.2,3175.8,0.01]
[1731761628548,3.14847,3176.2,3175.8,0.01]
[1731761628839,3.14851,3176.1,3175.8,0.01]
[1731761629192,3.14825,3176.4,3175.8,0.01]
[1731761629392,3.14825,3176.4,3176.0,0.01]
[1731761630493,0.63041199,3176.6,3176.0,0.01]
[1731761630693,0.63041199,3176.6,3176.2,0.01]
[1731761631919,0.63041199,3176.6,3176.1,3.1485]
[1731761631920,0.63041199,3176.6,3176.5,0.01]
[1731761632227,1.4541,3176.9,3176.5,0.01]
[1731761632440,4.60185,3176.9,3176.5,0.01]
[1731761632735,3.14784,3176.8,3176.5,0.01]
[1731761633449,3.79037968,3176.8,3176.5,0.01]
[1731761633746,1.4541,3176.9,3176.5,0.01]
[1731761634248,4.6019,3176.9,3176.5,0.325824]
[1731761635096,4.6019,3176.9,3176.7,0.01]
[1731761635520,3.14782,3176.8,3176.7,0.01]
[1731761639456,1.4541,3176.9,3176.7,0.01]
[1731761639599,4.60182,3176.9,3176.7,0.01]
[1731761639906,3.14782,3176.8,3176.7,0.01]
[1731761647080,3.14811,3176.5,3176.4,0.01]
[1731761647282,3.14851,3176.1,3176.0,0.01]
[1731761647443,3.14831,3176.3,3176.0,0.01]
[1731761647949,3.14809,3176.6,3176.0,0.01]
[1731761647950,3.14819,3176.5,3176.0,0.01]
[1731761648364,3.14823,3176.4,3176.0,0.01]
[1731761648666,3.14832,3176.3,3176.0,0.01]
[1731761648983,3.14832,3176.3,3175.3,0.01]
[1731761648984,3.14881,3175.8,3175.3,0.01]
[1731761649279,3.14881,3175.8,3174.7,3.1499]
[1731761649280,3.14901,3175.6,3175.5,0.01]
[1731761649783,3.14901,3175.6,3175.5,0.03949048]
[1731761649961,3.14914,3175.5,3175.3,0.01]
[1731761650155,3.14866,3176.0,3175.1,0.01]
[1731761650369,3.14932,3175.3,3174.9,0.01]
[1731761650572,3.14955,3175.1,3174.9,0.01]
[1731761650776,3.14952,3175.1,3174.9,0.01]
[1731761651081,3.14887,3175.8,3174.0,3.02346114]
[1731761651082,3.1498,3174.8,3174.5,0.01]
[1731761651450,3.1498,3174.8,3173.6,3.78487109]
[1731761651451,3.01346114,3175.3,3174.2,0.01]
[1731761651646,3.15,3174.6,3174.1,0.01]
[1731761651848,3.01346114,3175.3,3174.1,0.01]
[1731761651849,3.1503,3174.3,3174.1,0.01]
[1731761652344,3.14977,3174.9,3173.9,0.01]
[1731761652550,3.15042,3174.2,3174.1,0.01]
[1731761652743,0.63145967,3175.2,3174.2,0.01]
[1731761652944,3.1503,3174.3,3174.2,0.01]
[1731761653574,3.15013,3174.5,3174.2,0.01]
[1731761653882,0.63145967,3175.2,3174.2,0.01]
[1731761654055,0.63145967,3175.2,3174.8,0.01]
[1731761654056,3.14942,3175.2,3174.8,0.01]
[1731761654243,3.14916,3175.5,3175.0,0.01]
[1731761654443,3.01346114,3176.3,3175.0,0.01]
[1731761654444,3.1495,3175.1,3175.0,0.01]
[1731761655591,3.14935,3175.3,3175.0,0.01]
[1731761655743,3.14949,3175.2,3175.0,0.01]
[1731761655948,0.61572353,3175.7,3175.0,0.01]
[1731761655949,3.14911,3175.5,3175.0,0.01]
[1731761656186,3.14911,3175.5,3175.3,0.01]
[1731761656479,0.61572353,3175.7,3175.3,0.01]
[1731761656480,3.1492,3175.4,3175.3,0.01]
[1731761656873,3.76464353,3175.7,3175.3,0.01]
[1731761657248,3.14872,3175.9,3175.3,0.01]
[1731761657650,3.14867,3176.0,3175.5,0.01]
[1731761658305,3.01346114,3176.6,3175.5,0.01]
[1731761658506,3.14878,3175.9,3175.5,0.01]
[1731761659217,3.14882,3175.8,3175.5,0.01]
[1731761659373,3.14852,3176.1,3175.5,0.01]
[1731761659991,3.14799,3176.7,3175.5,0.01]
[1731761660196,3.14863,3176.0,3175.5,0.01]
[1731761660422,0.6269857,3176.0,3174.9,0.01]
[1731761660713,3.1496,3175.0,3174.7,0.01]
[1731761660914,3.1496,3175.0,3174.9,0.01]
[1731761661273,3.14971,3174.9,3174.7,0.01]
[1731761661801,3.14952,3175.1,3175.0,0.01]
[1731761663012,3.1494,3175.2,3175.0,0.01]
[1731761663236,3.14965,3175.0,3174.7,0.01]
[1731761663522,3.1498,3174.8,3174.7,0.01]
[1731761663902,3.14943,3175.2,3174.7,0.01]
[1731761664103,3.14416259,3176.3,3175.0,0.01]
[1731761664104,3.14921,3175.4,3175.0,0.01]
[1731761664298,3.14939,3175.3,3175.0,0.01]
[1731761664877,3.14921,3175.4,3175.0,0.01]
[1731761665777,3.1493,3175.3,3175.0,0.01]
[1731761666439,3.1493,3175.3,3175.2,0.01]
[1731761669036,3.1493,3175.3,3174.5,3.15009]
[1731761669037,6.80227308,3176.4,3174.5,3.15009]
[1731761669038,3.14892,3175.7,3175.4,0.01]
[1731761670324,3.14876,3175.9,3175.4,0.01]
[1731761670695,3.14882,3175.8,3175.4,0.01]
[1731761671096,3.76525801,3176.0,3175.4,0.01]
[1731761671312,3.76525801,3176.0,3175.2,3.21229104]
[1731761671313,0.61663801,3176.0,3175.6,0.01]
[1731761671634,3.65401308,3177.2,3175.9,0.01]
[1731761671635,3.14853,3176.1,3175.9,0.01]
[1731761672483,3.14861,3176.0,3175.9,0.01]
[1731761673536,3.14861,3176.0,3175.4,3.0]
[1731761673537,3.14861,3176.0,3175.7,0.01]
[1731761673698,3.14881,3175.8,3175.5,0.01]
[1731761673895,3.14901,3175.6,3175.5,0.01]
[1731761674510,3.14881,3175.8,3175.5,0.01]
[1731761676109,3.14888,3175.8,3175.5,0.01]
[1731761676707,0.62280817,3176.2,3175.5,0.01]
[1731761676708,3.14892,3175.7,3175.5,0.01]
[1731761677035,3.14901,3175.6,3175.5,0.01]
[1731761680341,3.14915,3175.5,3175.1,0.01]
[1731761680638,3.14889,3175.8,3175.5,0.01]
[1731761680639,3.14901,3175.6,3175.5,0.01]
[1731761681056,3.14889,3175.8,3175.5,0.01]
[1731761681366,3.14901,3175.6,3175.5,0.01]
[1731761681806,6.29778,3175.8,3175.5,0.01]
[1731761682010,3.14901,3175.6,3175.5,0.01]
[1731761682248,3.1495,3175.1,3175.0,0.01]
[1731761682469,3.1495,3175.1,3174.7,0.01]
[1731761682470,3.14973,3174.9,3174.7,0.01]
[1731761682749,3.01570087,3175.9,3174.7,0.01]
[1731761683054,3.1498,3174.8,3174.7,0.01]
[1731761686662,3.15,3174.6,3174.5,0.01]
[1731761687459,3.1503,3174.3,3174.2,0.01]
[1731761688387,0.63519448,3174.9,3174.7,0.01]
[1731761688730,3.14962,3175.0,3174.7,0.01]
[1731761691069,0.6155367,3175.1,3174.7,0.01]
[1731761691535,3.14961,3175.0,3174.7,0.01]
[1731761691844,0.6155367,3175.1,3174.7,0.01]
[1731761693094,3.14897,3175.7,3175.2,0.01]
[1731761693273,3.14911,3175.5,3175.2,0.01]
[1731761693438,3.14897,3175.7,3175.2,0.01]
[1731761693645,3.14904,3175.6,3175.2,0.01]
[1731761694243,3.14861,3176.0,3175.2,0.01]
[1731761694443,3.14922,3175.4,3175.2,0.01]
[1731761695493,3.14901,3175.6,3175.2,0.01]
[1731761695991,3.14894,3175.7,3175.2,0.01]
[1731761696387,3.14884,3175.8,3175.2,0.01]
[1731761696690,3.78075103,3175.8,3175.4,0.01]
[1731761697148,3.14891,3175.7,3175.4,0.01]
[1731761697688,3.14901,3175.6,3175.4,0.01]
[1731761697985,0.63191103,3175.8,3175.2,0.31595]
[1731761697986,3.14911,3175.5,3175.2,0.01]
[1731761698188,3.1493,3175.3,3175.2,0.01]
[1731761699160,3.1495,3175.1,3175.0,0.01]
[1731761699927,3.1499,3174.7,3174.6,0.01]
[1731761700084,3.1499,3174.7,3174.4,0.01]
[1731761700085,3.1501,3174.5,3174.4,0.01]
[1731761701128,3.14988,3174.8,3174.4,0.01]
[1731761701331,3.14998,3174.7,3174.4,0.01]
[1731761702027,3.14932,3175.3,3174.8,0.01]
[1731761702250,3.14892,3175.7,3175.1,0.01]
[1731761702821,0.6216468,3175.4,3175.1,0.01]
[1731761703560,0.6216468,3175.4,3175.3,0.01]
[1731761703708,3.14876,3175.9,3175.3,0.01]
[1731761703907,3.14864,3176.0,3175.3,0.01]
[1731761704105,3.14828,3176.4,3175.3,0.01]
[1731761704350,3.1492,3175.4,3175.3,0.01]
[1731761704551,3.14909,3175.6,3174.8,2.86]
[1731761704838,3.14915,3175.5,3174.8,6.00978]
[1731761704997,3.14915,3175.5,3174.8,6.925747]
[1731761705517,3.14929,3175.4,3174.8,3.775967]
[1731761706032,3.14909,3175.6,3174.9,3.38499275]
[1731761706033,3.14907,3175.6,3174.9,3.38499275]
[1731761706201,3.14907,3175.6,3175.0,3.14958]
[1731761706749,3.14907,3175.6,3175.0,0.3146]
[1731761707056,3.14907,3175.6,3174.4,3.0]
[1731761707057,3.01570087,3175.6,3174.4,3.0]
[1731761707358,3.14981,3174.8,3174.5,0.23538716]
[1731761707654,3.14981,3174.8,3173.9,3.15067]
[1731761707655,3.14991,3174.7,3173.9,3.15067]
[1731761708002,3.14991,3174.7,3173.7,3.15087]
[1731761708266,3.14937,3175.3,3173.6,3.16092]
[1731761708267,3.15034,3174.3,3173.6,3.16092]
[1731761708404,3.15041,3174.2,3173.6,3.16092]
[1731761708963,3.15057,3174.1,3173.4,3.15112]
[1731761709310,3.15057,3174.1,3173.2,3.48006988]
[1731761709311,3.15057,3174.1,3173.5,3.15108]
[1731761710152,3.15057,3174.1,3173.6,3.0]
[1731761713673,0.62208006,3174.9,3173.7,0.01]
[1731761713873,8.92,3175.8,3174.7,3.14987]
[1731761713874,3.14931,3175.3,3174.7,3.14987]
[1731761714165,3.14912,3175.5,3174.8,0.06299094]
[1731761714327,3.14871,3176.0,3174.8,38.14979]
[1731761714527,3.14871,3176.0,3174.8,3.14979]
[1731761714528,3.14916,3175.5,3174.8,3.14979]
[1731761714805,3.14923,3175.4,3174.8,3.14979]
[1731761715228,3.14871,3175.9,3174.9,0.06299024]
[1731761715433,6.16399087,3176.4,3174.9,0.06299024]
[1731761715434,3.14881,3175.8,3175.2,3.14938]
[1731761715752,3.14852,3176.1,3175.2,3.14938]
[1731761715925,3.14872,3175.9,3175.3,3.21228133]
[1731761716131,3.77296296,3176.1,3175.3,3.1493]
[1731761716344,3.14853,3176.1,3175.3,3.1493]
[1731761716524,3.14889,3175.8,3175.2,3.0]
[1731761716731,3.14892,3175.7,3175.2,3.0]
[1731761717137,3.14892,3175.7,3174.7,38.14988]
[1731761717457,3.14892,3175.7,3172.6,3.1519]
[1731761717458,3.1495,3175.1,3174.4,3.0]
[1731761717659,3.1494,3175.2,3174.4,6.15011]
[1731761717968,0.55,3175.9,3174.0,0.01]
[1731761717969,3.15001,3174.6,3174.0,3.15054]
[1731761718270,3.15001,3174.6,3173.8,3.15071]
[1731761718569,3.14962,3175.0,3173.6,0.01]
[1731761718738,3.14962,3175.0,3174.3,3.15027]
[1731761718940,3.14969,3175.0,3174.0,3.15054]
[1731761719272,3.78656016,3175.1,3174.0,3.15054]
[1731761719442,3.14982,3174.8,3174.0,3.15054]
[1731761720062,3.14982,3174.8,3174.1,3.15041]
[1731761720362,3.14955,3175.1,3174.4,3.15017]
[1731761720572,0.55,3175.9,3174.4,3.15017]
[1731761720727,3.1496,3175.0,3174.4,3.15017]
[1731761720923,3.14951,3175.1,3174.4,3.15017]
[1731761721524,3.14931,3175.3,3173.9,0.01]
[1731761721755,3.14931,3175.3,3174.6,3.14998]
[1731761722423,3.14923,3175.4,3174.5,3.15008]
[1731761722904,3.14947,3175.2,3174.6,3.14995]
[1731761723077,3.14947,3175.2,3174.5,3.15008]
[1731761723405,3.14951,3175.1,3174.5,3.15008]
[1731761723610,3.14951,3175.1,3174.0,6.6541843]
[1731761723808,0.62960794,3175.3,3174.2,3.0]
[1731761724115,3.14973,3174.9,3174.2,6.15038]
[1731761724406,0.62960794,3175.3,3174.2,6.15038]
[1731761724407,3.14981,3174.8,3174.2,6.15038]
[1731761724604,3.15008,3174.6,3174.0,3.0]
[1731761725801,3.14887,3175.8,3174.9,3.14961]
[1731761726005,3.14892,3175.7,3174.9,3.14961]
[1731761726194,0.01,3176.5,3174.8,3.0]
[1731761726367,3.14931,3175.3,3174.8,3.0]
[1731761726566,3.14931,3175.3,3174.4,6.8042943]
[1731761726567,3.14937,3175.3,3174.5,3.0]
[1731761726782,3.14949,3175.2,3174.5,3.15009]
[1731761727074,3.14937,3175.3,3174.6,6.14998]
[1731761727278,3.1492,3175.4,3174.6,6.14998]
[1731761727487,3.14939,3175.3,3174.6,6.14998]
[1731761728109,3.14944,3175.2,3174.6,6.14998]
[1731761729627,0.63925646,3175.6,3174.4,3.0]
[1731761729628,3.14911,3175.5,3174.4,3.0]
[1731761729768,3.14929,3175.4,3174.4,6.15018]
[1731761729969,3.14947,3175.2,3174.5,3.15008]
[1731761730279,3.14929,3175.4,3174.6,3.0]
[1731761730482,3.14951,3175.1,3174.6,3.0]
[1731761731704,3.14951,3175.1,3174.4,0.930057]
[1731761731908,3.14964,3175.0,3174.4,0.930057]
[1731761732120,3.14951,3175.1,3174.4,4.080227]
[1731761732271,3.14951,3175.1,3174.5,3.15009]
[1731761732474,3.14951,3175.1,3174.6,3.0]
[1731761733572,0.63925646,3175.6,3174.1,3.15043]
[1731761733795,0.63925646,3175.6,3174.2,3.0]
[1731761733993,0.63925646,3175.6,3174.1,3.15043]
[1731761733994,3.14988,3174.8,3174.1,3.15043]
[1731761734246,3.14988,3174.8,3173.9,3.1506]
[1731761734701,3.15,3174.6,3173.9,3.1506]
[1731761735612,3.15,3174.6,3174.0,3.0]
[1731761738095,3.15011,3174.5,3174.0,3.0]
[1731761738531,3.15011,3174.5,3173.5,0.33871868]
[1731761738733,3.15002,3174.6,3173.7,3.15086]